[Event "7th Porticcio Open 2022"]
[Site "Porticcio"]
[Date "2022.07.05"]
[Round "5.8"]
[White "Valles Moreno, Ivan"]
[Black "Derige Kane, Yan"]
[Result "0-1"]
[ECO "A09"]
[WhiteElo "2384"]
[BlackElo "2112"]
[Annotator "TA"]
[PlyCount "90"]
[EventDate "2022.07.02"]
[EventType "swiss"]
[EventCountry "FRA"]
[SourceTitle "playchess.com"]
[Source "ChessBase"]
[SourceQuality "1"]
[TimeControl "5400+30"]

{[%evp 11,90,-14,-15,-29,-13,-26,-22,-16,-16,-18,-6,-21,-13,-7,0,0,17,15,48,0,15,17,25,25,35,17,28,0,27,0,0,0,35,55,69,38,118,95,154,161,234,29,27,27,39,0,177,177,158,0,24,0,12,-225,-218,-683,-702,-705,-707,-695,-664,-606,-427,-627,-610,-1494,-1653,-1425,-1059,-1207,-1181,-29978,-29979,-29979,-29980,-29980,-29981,-29995,-29992,-29996,-29997]} 1. Nf3 {[%emt 0:00:22]} d5 {[%emt 0:08:22]} 2. c4 {[%emt 0:01:07]} d4 {[%emt 0:02:22]} 3. g3 {[%emt 0:00:31]} Nc6 {[%emt 0:00:48]} 4. Bg2 {[%emt 0:00:08]} e5 {[%emt 0:00:03]} 5. d3 {[%emt 0:00:09]} Bb4+ {[%emt 0:00:03]} 6. Bd2 {[%emt 0:01:27]} a5 {[%emt 0:00:04]} 7. O-O {[%emt 0:00:19] A09: Réti Opening: 1 Nf3 d5 2 c4.} Nf6 {[%emt 0:00:07]} (7... Nge7 {feels hotter.} 8. e3 Bg4 9. exd4 Nxd4 10. Bc3 O-O) 8. Bxb4 {[%emt 0:04:06]} axb4 {[%emt 0:00:22]} 9. Nbd2 {[%emt 0:00:09] The position is equal.} O-O {[%emt 0:01:00]} 10. Ne1 {[%emt 0:00:51]} Qe7 {[%emt 0:07:05]} 11. Nc2 {[%emt 0:00:53] [#]} Re8 $146 {[%emt 0:14:57]} ({Predecessor:} 11... Bf5 12. Nb3 Rfd8 13. Qd2 Ra4 14. a3 bxa3 15. Rxa3 Rxa3 16. bxa3 e4 17. f3 e3 {½-½ (52) Barria Zuniga,D (2435)-Ducarmon,Q (2456) Roquetas de Mar 2014}) 12. Nb3 {[%emt 0:02:12]} Bg4 {[%emt 0:24:23]} 13. Qd2 {[%emt 0:00:54]} Rab8 {[%emt 0:18:02]} 14. Rfe1 {[%emt 0:08:00]} Be6 {[%emt 0:03:40]} 15. Reb1 {[%emt 0:07:49]} (15. f4 $1 $14) 15... Nd7 {[%emt 0:00:34]} 16. a3 {[%emt 0:01:27]} bxa3 {[%emt 0:00:28]} 17. bxa3 {[%emt 0:03:08]} Nd8 {[%emt 0:03:03]} 18. a4 {[%emt 0:01:02]} c5 {[%emt 0:01:54]} 19. Rb2 {[%emt 0:01:42]} f5 {[%emt 0:01:10]} 20. Na3 {[%emt 0:04:25]} Nf6 {[%emt 0:01:18]} 21. e3 {[%emt 0:09:34]} Nf7 {[%emt 0:00:27]} 22. exd4 {[%emt 0:00:27]} cxd4 {[%emt 0:00:32]} 23. Nc2 {[%emt 0:00:12]} g5 {[%emt 0:02:48]} (23... e4 $14) 24. Rab1 {[%emt 0:03:16]} b6 {[%emt 0:01:52] Against Na5} ({Better is} 24... Bd7) 25. Na5 $16 {[%emt 0:02:47]} Bd7 {[%emt 0:03:29]} (25... Rbc8 $142) 26. Rxb6 $2 {[%emt 0:01:59]} (26. Nc6 $18 Bxc6 27. Bxc6) 26... Rxb6 $11 {[%emt 0:00:26]} 27. Rxb6 {[%emt 0:00:07] Threatens to win with Nb4.} Bxa4 {[%emt 0:00:38]} 28. Nb4 {[%emt 0:02:22]} Qd8 {[%emt 0:00:58]} (28... e4 $1 $11 29. dxe4 Qd8) 29. c5 $18 {[%emt 0:01:22] Nb7 is the strong threat.} e4 {[%emt 0:01:41] [#]} 30. Qa2 {[%emt 0:07:27]} (30. Nb7 $1 $16 {[%cal Rb7d8]} e3 31. Qe2 exf2+ 32. Qxf2) 30... e3 $1 $11 {[%emt 0:01:41] aiming for ...e2.} 31. Rb7 {[%emt 0:01:24]} ({Avoid the trap} 31. Qxa4 $2 exf2+ 32. Kxf2 Ng4+ 33. Kg1 Re1+ 34. Bf1 Ne3 $19) (31. Bf1 $5 {[%cal Ra2a4]} exf2+ 32. Kxf2 (32. Qxf2 Nd7 $11) 32... Ng4+ 33. Kg1 $11) 31... Bd7 {[%emt 0:01:03] And now ...e2 would win.} 32. Nbc6 $2 {[%emt 0:01:04] This costs White the game.} (32. fxe3 $11 {and White has nothing to worry.} dxe3 33. Nac6) 32... e2 $19 {[%emt 0:00:34]} 33. Qxf7+ $2 {[%emt 0:13:24]} (33. Nxd8 e1=Q+ 34. Bf1 Rxd8 35. Rb1) 33... Kxf7 {[%emt 0:00:28]} 34. Nxd8+ {[%emt 0:00:06]} Kg6 {[%emt 0:00:35]} ({Worse is} 34... Rxd8 35. Rb1 $11) 35. Rb1 {[%emt 0:02:23]} e1=Q+ {[%emt 0:00:09]} 36. Rxe1 {[%emt 0:00:04]} Rxe1+ {[%emt 0:00:07]} 37. Bf1 {[%emt 0:00:04]} f4 {[%emt 0:01:08] ( -> ...Bh3)} 38. Nc4 {[%emt 0:00:17]} Bh3 {[%emt 0:00:29][%csl Gh3][%cal Re1f1]} 39. Nd2 {[%emt 0:00:06]} Nd5 {[%emt 0:00:36][%cal Od5e3] White must now prevent ...Ne3!} 40. Nc6 {[%emt 0:00:44] [#]} Ne3 $1 {[%emt 0:00:30][%cal Re3f1][%mdl 512]} 41. Ne5+ {[%emt 0:01:31]} (41. f3 Bxf1) 41... Kf6 {[%emt 0:00:30] Black mates.} 42. Nef3 {[%emt 0:00:26]} Rc1 {[%emt 0:00:31]} 43. Nxd4 {[%emt 0:06:18]} Nxf1 {[%emt 0:00:26][%cal Rf1d2]} 44. N4b3 {[%emt 0:00:09]} Rd1 {[%emt 0:00:26][%csl Gd1][%cal Rf1d2]} 45. Ne4+ {[%emt 0:01:33]} Kg7 {[%emt 0:00:35] Weighted Error Value: White=0.67/Black=0.29 (precise)} 0-1

[Event "7th Porticcio Open 2022"]
[Site "Porticcio"]
[Date "2022.07.05"]
[Round "6.1"]
[White "Maurizzi, Marc Andria"]
[Black "Can, Isik"]
[Result "1-0"]
[ECO "B18"]
[WhiteElo "2506"]
[BlackElo "2445"]
[Annotator "TA"]
[PlyCount "101"]
[EventDate "2022.07.02"]
[EventType "swiss"]
[EventCountry "FRA"]
[SourceTitle "playchess.com"]
[Source "ChessBase"]
[SourceQuality "1"]
[TimeControl "5400+30"]

{[%evp 11,101,10,17,10,10,2,11,10,15,10,7,8,19,0,24,19,13,27,42,26,34,36,43,43,70,77,66,66,68,68,77,71,73,57,64,65,66,25,19,18,18,17,34,22,20,20,34,-31,-27,-35,-7,0,0,-38,-18,-18,-26,-52,0,0,0,-27,-25,-29,0,0,0,-43,0,0,0,0,0,0,37,31,152,135,137,151,708,709,690,700,685,681,665,647,639,637,550,492]} 1. e4 {[%emt 0:00:03]} c6 {[%emt 0:00:52]} 2. d4 {[%emt 0:00:11]} d5 {[%emt 0:00:04]} 3. Nc3 {[%emt 0:00:04]} dxe4 {[%emt 0:00:04]} 4. Nxe4 {[%emt 0:00:04]} Bf5 {[%emt 0:00:04]} 5. Ng3 {[%emt 0:00:03]} Bg6 {[%emt 0:00:06]} 6. h4 {[%emt 0:00:36]} h6 {[%emt 0:04:10]} 7. Bd3 {[%emt 0:01:45] Hoping for Bxg6. B18: Classical Caro-Kann: 4...Bf5 sidelines.} Bxd3 {[%emt 0:00:30]} 8. Qxd3 {[%emt 0:00:03]} e6 {[%emt 0:01:28]} 9. N1e2 {[%emt 0:00:31] The position is equal.} Nd7 10. Bd2 {[%emt 0:01:35]} Ngf6 {[%emt 0:05:34]} 11. O-O-O Be7 {[%emt 0:09:44]} 12. Kb1 {[%emt 0:04:31]} O-O {[%emt 0:08:27]} 13. Ne4 Nxe4 {[%emt 0:00:43]} 14. Qxe4 {[%emt 0:02:42]} Nf6 {[%emt 0:00:04]} 15. Qd3 {[%emt 0:00:02][%cal Og2g4]} Qd5 {[%emt 0:12:28]} 16. f3 {[%emt 0:01:22] [#]} e5 $146 {[%emt 0:00:30]} ({Predecessor:} 16... h5 17. Bg5 Qf5 18. Qxf5 exf5 19. Nf4 g6 20. Rhe1 Bd8 21. c4 Kg7 22. Kc2 Re8 23. Rxe8 Nxe8 24. Bxd8 Rxd8 {1-0 (34) Vorobiov,E (2535)-Wenninger,P (2366) Schwaebisch Gmuend 2020}) 17. g4 {[%emt 0:00:24][%cal Bg2g4,Bg4g5][%mdl 32]} e4 {[%emt 0:01:48]} 18. Qc3 Qb5 {And now ...Nd5 would win.} 19. Nf4 {[%emt 0:14:00][%cal Og4g5] aiming for g5!} Nd5 {[%emt 0:10:05]} 20. Nxd5 {[%emt 0:00:12]} cxd5 {[%emt 0:01:30]} 21. fxe4 {[%emt 0:00:38]} dxe4 {[%emt 0:00:08]} 22. g5 {[%emt 0:02:08]} h5 {[%emt 0:00:34]} (22... hxg5 23. hxg5 Qd7 24. Qg3 $18) 23. Rhe1 Qd5 24. Qe3 {[%emt 0:05:42]} f5 {[%emt 0:08:58]} 25. gxf6 {[%emt 0:00:57]} Bxf6 {[%emt 0:00:06]} 26. Qxe4 {[%emt 0:00:39]} Qxd4 {[%emt 0:14:14][%csl Gf6][%cal Rd4b2]} 27. Qe6+ {[%emt 0:07:16]} (27. Qxb7 $2 Rab8 28. Bc1 Rxb7 $19) 27... Kh7 {[%csl Gf6][%cal Rd4b2]} 28. Bc3 Qg4 {[%emt 0:04:41]} 29. Qb3 {[%emt 0:09:39]} ({Better is} 29. Bxf6 $14 Rxf6 30. Qd5) 29... Rad8 {[%emt 0:01:01]} 30. Rc1 {[%emt 0:00:57]} (30. Rxd8 Rxd8 31. a3 Qxh4 $17) 30... Qf3 {[%emt 0:06:46]} ({Resist} 30... Qxh4 31. Rh1 Qg5 32. Bxf6 Rxf6 33. Qxb7 $14) ({But not} 30... Bxh4 31. Rg1 Bg3 32. Be5 $16 (32. Qxb7 Rd7 $11)) 31. Rf1 {[%emt 0:05:20]} Qd5 {[%emt 0:00:11] White must now prevent ...Qxb3.} 32. Qa3 {[%emt 0:03:52]} Rd6 {[%emt 0:01:32][%cal Of6g5]} 33. b3 {[%emt 0:01:15]} Rf7 {[%emt 0:05:20]} 34. Bxf6 {[%emt 0:05:31]} Ra6 {[%emt 0:00:07]} (34... Rdxf6 $15 35. Rxf6 Rxf6) 35. Qb4 $11 {[%emt 0:01:33]} Raxf6 {[%emt 0:00:07]} 36. Rfd1 {[%emt 0:01:53]} Qf3 {[%emt 0:00:29]} 37. Rd8 {[%emt 0:02:11]} Rf8 {[%emt 0:01:13]} (37... Qg4 $5 {[%cal Rg4b4]} 38. Rd4 Rf4 39. Rxf4 Qxf4 $11) 38. Rd7 {[%emt 0:00:33]} R8f7 {[%emt 0:00:06]} 39. Rd8 {[%emt 0:00:06]} Rf8 {[%emt 0:00:04]} (39... Qg4 $5 {[%cal Rg4b4]} 40. Rd4 Rf4 41. Rxf4 Qxf4 $11) 40. Rd3 {[%emt 0:01:05]} Qg2 {[%emt 0:01:45]} 41. Qc5 {[%emt 0:01:55][%csl LRa7,LRh5]} Qg4 {[%emt 0:03:49]} 42. Qxa7 {[%emt 0:00:54]} b6 {[%emt 0:00:27]} 43. Rdd1 {[%emt 0:06:04]} Qxh4 {[%emt 0:00:53] [#]} (43... R8f7 $14 44. Qb8 Qf4 45. Qxf4 Rxf4) 44. Rh1 $1 $16 {[%emt 0:00:09]} Qg5 {[%emt 0:00:01]} 45. Rcg1 $40 {[%emt 0:00:09][%mdl 128] Threatening mate with Rxh5+. Black is in trouble.} Qh6 {[%emt 0:00:01] [#] Loses the game.} (45... R8f7 $16 46. Rxg5 Rxa7) 46. Rxh5 $3 $18 {[%emt 0:01:22][%csl Gg1][%cal Ra7g7][%mdl 512] White is clearly winning.} Rf1+ {[%emt 0:00:07]} 47. Kb2 {[%emt 0:00:02][%csl Gg1][%cal Ra7g7]} Rxg1 {[%emt 0:00:07]} 48. Rxh6+ {[%emt 0:00:01]} Kxh6 {[%emt 0:00:07]} 49. Qxb6+ {[%emt 0:00:03]} Rg6 {[%emt 0:00:05]} 50. Qe3+ {[%emt 0:00:04]} Kh7 {[%emt 0:01:22]} 51. a4 {[%emt 0:00:11] Weighted Error Value: White=0.06 (flawless) /Black=0.14 (very precise)} 1-0

[Event "7th Porticcio Open 2022"]
[Site "Porticcio"]
[Date "2022.07.05"]
[Round "6.2"]
[White "Clarke, Brandon G I"]
[Black "Yankelevich, Lev"]
[Result "1-0"]
[ECO "C55"]
[WhiteElo "2486"]
[BlackElo "2496"]
[Annotator "TA"]
[PlyCount "89"]
[EventDate "2022.07.02"]
[EventType "swiss"]
[EventCountry "FRA"]
[SourceTitle "playchess.com"]
[Source "ChessBase"]
[SourceQuality "1"]
[TimeControl "5400+30"]

{[%evp 15,89,0,0,0,0,-18,-6,-27,-33,-42,-33,-33,-25,-49,0,-21,23,-2,0,-29,0,0,0,0,0,0,0,0,12,13,104,98,89,25,22,22,27,28,26,22,26,24,60,64,66,55,107,106,115,86,83,84,83,77,81,79,90,86,107,101,116,123,185,199,622,627,626,620,577,562,6087,6087,5081,5073,2199,1255]} 1. e4 {[%emt 0:00:03]} e5 {[%emt 0:00:16][%cal Be7e5,Be5d4][%mdl 32]} 2. Nf3 {[%emt 0:00:10]} Nc6 {[%emt 0:00:23]} 3. Bc4 {[%emt 0:01:35]} Nf6 {[%emt 0:00:03]} 4. d4 {[%emt 0:01:37]} exd4 {[%emt 0:00:03]} 5. e5 {[%emt 0:00:18]} d5 {[%emt 0:00:03]} 6. Bb5 {[%emt 0:00:08]} Nd7 {[%emt 0:00:03]} 7. O-O {[%emt 0:01:32]} Be7 {[%emt 0:00:02]} 8. Bxc6 {[%emt 0:01:47]} bxc6 {[%emt 0:00:03]} 9. Nxd4 {[%emt 0:01:22] C56: Two Knights: 4 d4 exd4 5 0-0 Nxe4.} Nb8 {[%emt 0:00:02]} 10. f4 {[%emt 0:03:22]} c5 {[%emt 0:07:45]} 11. Ne2 {[%emt 0:09:55] The position is equal.} f6 {[%emt 0:07:09]} 12. c4 {[%emt 0:05:32] [#]} dxc4 $146 {[%emt 0:03:34]} ({Predecessor:} 12... d4 13. Ng3 O-O 14. Qf3 c6 15. exf6 Bxf6 16. Nd2 a5 17. Nde4 Be7 18. Bd2 Bf5 19. Nxf5 Rxf5 {1-0 (36) Soltys,J-Pletanek,D corr 1972}) 13. Qxd8+ {[%emt 0:10:47]} Bxd8 {[%emt 0:00:30]} 14. Be3 {[%emt 0:01:21][%cal Bc1e3,Be3c5,Bc5d6][%mdl 32]} Nc6 {[%emt 0:05:34]} (14... O-O $15 {feels stronger.}) 15. Nd2 {[%emt 0:02:21]} Bf5 {[%emt 0:03:13]} 16. Rac1 {[%emt 0:04:16]} (16. Nxc4 $2 Bd3 17. Rac1 (17. exf6 $2 Bxf6 18. Rac1 Bxe2 $19) 17... Bxe2 $19) 16... Bd3 {[%emt 0:01:53]} 17. Rf2 {[%emt 0:03:51]} fxe5 {[%emt 0:11:36]} 18. Nxc4 {[%emt 0:01:18]} e4 {[%emt 0:07:11]} 19. Bxc5 {[%emt 0:03:01]} Bf6 {[%emt 0:00:34] Prevents Nd4.} 20. f5 {[%emt 0:04:07]} O-O-O {[%emt 0:02:22]} 21. Nf4 {[%emt 0:01:46]} Nd4 {[%emt 0:04:44]} 22. Nd6+ {[%emt 0:10:07]} (22. Bxa7 Bxc4 23. Rxc4 e3 $15) (22. Nxd3 exd3 23. Kf1 Nc2 $15) 22... Rxd6 {[%emt 0:09:50]} 23. Bxd6 $16 {[%emt 0:00:02]} Kd7 {[%emt 0:00:06]} 24. Bc5 {[%emt 0:02:06]} ({Better is} 24. Bxc7 $16 Re8 25. Ba5 (25. Nxd3 exd3 26. Bf4 Ne2+ 27. Kf1 Re4 $11)) 24... e3 $11 {[%emt 0:00:18] [#]} 25. Nxd3 {[%emt 0:02:03]} exf2+ {[%emt 0:01:35]} 26. Kxf2 {[%emt 0:00:06] Black must now prevent g4.} Nxf5 {[%emt 0:00:38]} 27. Rc4 {[%emt 0:02:02]} Nd6 {[%emt 0:01:20]} 28. Ra4 {[%emt 0:03:34]} Rf8 {[%emt 0:01:54]} 29. Ke2 {[%emt 0:02:46]} (29. Rxa7 Bxb2+ 30. Ke2 Bc3 $11) 29... Re8+ {[%emt 0:00:05]} 30. Kd1 {[%emt 0:00:46]} Nb5 {[%emt 0:06:01]} (30... a5 $14) 31. Ra5 $1 $16 {[%emt 0:00:36]} ({Much worse is} 31. Bxa7 $6 Bxb2 $1 32. Ra5 (32. Nxb2 $2 Nc3+ 33. Kc2 Nxa4 $19) 32... Nxa7 33. Nxb2 Nc6 34. Rd5+ Ke6 $11) 31... Rb8 {[%emt 0:01:06]} 32. Kc2 {[%emt 0:04:54]} Kc6 {[%emt 0:07:03]} (32... Nd4+ $2 33. Bxd4 Bxd4 34. Rd5+ Kc6 35. Rxd4 $18) 33. Bxa7 {[%emt 0:00:49]} Nxa7 {[%emt 0:00:38]} 34. Rxa7 {[%emt 0:00:02][%mdl 4096] Endgame KRB-KRN} Re8 {[%emt 0:00:36]} 35. Kd2 {[%emt 0:00:41] Prevents Re2+.} Bg5+ {[%emt 0:00:22] [#]} 36. Kd1 $1 {[%emt 0:00:12]} Re4 {[%emt 0:03:17]} 37. b3 {[%emt 0:05:56]} Rd4 {[%emt 0:02:41]} 38. Kc2 {[%emt 0:00:34]} Re4 {[%emt 0:00:07] [#]} (38... Kd6 $16) 39. Ra6+ $1 $18 {[%emt 0:00:13]} Kd5 $2 {[%emt 0:01:41]} (39... Kb5 40. a4+ (40. Ra7 Re2+ 41. Kb1 Rd2 $15) 40... Kxa6 41. Nc5+ Ka5 42. Nxe4 Bf4) 40. Ra5+ {[%emt 0:00:34] White is clearly winning.} Kd4 {[%emt 0:00:02]} 41. Rxg5 {[%emt 0:00:43]} Re2+ {[%emt 0:00:07]} 42. Kd1 {[%emt 0:00:05]} Kxd3 {[%emt 0:00:03]} 43. Rd5+ {[%emt 0:00:09]} Ke4 {[%emt 0:00:02]} 44. Kxe2 {[%emt 0:00:07] Threatening mate with Rc5.} Kxd5 {[%emt 0:00:02]} 45. Kd3 {[%emt 0:00:13] Weighted Error Value: White=0.08 (flawless) /Black=0.34} 1-0

[Event "7th Porticcio Open 2022"]
[Site "Porticcio"]
[Date "2022.07.05"]
[Round "6.3"]
[White "Rakotomaharo, Fy Antenaina"]
[Black "Venkatesh, M.R."]
[Result "1/2-1/2"]
[ECO "C77"]
[WhiteElo "2490"]
[BlackElo "2479"]
[Annotator "TA"]
[PlyCount "123"]
[EventDate "2022.07.02"]
[EventType "swiss"]
[EventCountry "FRA"]
[SourceTitle "playchess.com"]
[Source "ChessBase"]
[SourceQuality "1"]
[TimeControl "5400+30"]

{[%evp 16,123,31,27,22,15,33,37,47,25,34,37,33,29,44,43,40,0,0,0,0,0,68,16,20,22,16,4,13,0,14,0,23,0,0,0,0,-14,-15,-14,-21,-8,24,16,39,36,64,40,97,36,45,8,22,0,0,0,8,-19,-19,-76,-66,-104,-75,-67,-30,-172,0,0,0,0,0,0,0,0,0,-3,-6,-7,-10,-9,0,-58,-67,-64,-5,-5,-5,-5,-6,-72,-20,-77,0,0,0,0,0,0,0,0,0,0,0,0,0,0,0,0,0,0]} 1. e4 {[%emt 0:02:40]} e5 {[%emt 0:02:46]} 2. Nf3 {[%emt 0:00:06]} Nc6 {[%emt 0:00:08]} 3. Bb5 {[%emt 0:00:05]} a6 {[%emt 0:00:29]} 4. Ba4 {[%emt 0:00:06]} Nf6 {[%emt 0:00:08]} 5. d3 {[%emt 0:00:22]} d6 {[%emt 0:01:20]} 6. c3 {[%emt 0:00:12]} g6 {[%emt 0:00:14]} 7. O-O {[%emt 0:00:07]} Bg7 {[%emt 0:00:16]} 8. Re1 {[%emt 0:00:14]} O-O {[%emt 0:00:34]} 9. Nbd2 {[%emt 0:00:21]} h6 {[%emt 0:26:24] C77: Ruy Lopez: 3...a6 4 Ba4 Nf6, unusual lines.} 10. h3 {[%emt 0:00:25]} Nh5 {[%emt 0:04:09]} 11. Nf1 {[%emt 0:05:04]} Nf4 {[%emt 0:06:01] [#] White is slightly better.} 12. Bxf4 $146 {[%emt 0:25:05]} ({Predecessor:} 12. d4 Bd7 13. Bb3 Na5 14. Bc2 c5 15. Ne3 cxd4 16. cxd4 Rc8 17. dxe5 dxe5 18. Nd5 {1-0 (27) Horvath,Z (2332)-Somborski,N (2350) Nyiregyhaza 2004}) 12... exf4 {[%emt 0:00:09]} 13. d4 {[%emt 0:00:03]} Ne7 {[%emt 0:08:01]} 14. h4 {[%emt 0:12:04]} Nc6 {[%emt 0:09:00]} 15. Qd2 {[%emt 0:12:08]} g5 {[%emt 0:01:10]} 16. hxg5 {[%emt 0:01:04]} hxg5 {[%emt 0:00:02]} 17. g3 {[%emt 0:00:07]} Qf6 {[%emt 0:12:53]} 18. N1h2 {[%emt 0:01:29]} Ne7 {[%emt 0:06:31]} ({Black should try} 18... Qh6 $11) 19. gxf4 {[%emt 0:07:25]} (19. e5 $14 dxe5 20. Rxe5) 19... Qxf4 $11 {[%emt 0:02:45]} 20. Qxf4 {[%emt 0:01:44]} gxf4 {[%emt 0:00:02]} 21. Kh1 {[%emt 0:00:47]} b5 {[%emt 0:02:05]} 22. Bb3 {[%emt 0:01:07]} Bb7 {[%emt 0:00:31]} 23. Ng5 {[%emt 0:00:17]} c5 {[%emt 0:01:06]} 24. Rad1 {[%emt 0:00:58]} cxd4 {[%emt 0:02:01]} (24... c4 $5 25. Bc2 Ng6 $11) 25. cxd4 {[%emt 0:00:06]} Rac8 {[%emt 0:00:45]} 26. Rd2 {[%emt 0:05:15]} a5 {[%emt 0:05:01]} 27. a3 {[%emt 0:00:26]} a4 {[%emt 0:01:23]} 28. Ba2 {[%emt 0:00:18]} Rc7 {[%emt 0:02:51]} 29. Rg1 {[%emt 0:10:04][%cal Be1g1,Bg1g4,Bg4f4][%mdl 32]} d5 {[%emt 0:01:54]} (29... Nf5 {feels hotter.} 30. Nhf3 Nh6 31. Nh4 Rfc8) 30. e5 {[%emt 0:05:25]} Rfc8 {[%emt 0:01:34]} 31. Rdd1 {[%emt 0:01:09] Inhibits Rc1. And now Ng4 would win. White is more active.} Rc6 {[%emt 0:01:23] [#]} (31... Rc2 $14) 32. Bb1 {[%emt 0:00:35]} (32. Ng4 $1 $16) 32... Rh6 $14 {[%emt 0:00:13][%cal Ob5b4]} 33. Rg4 {[%emt 0:02:34]} Rcc6 {[%emt 0:02:31]} 34. Rdg1 {[%emt 0:00:35][%cal Ob1h7]} Bc8 $36 {[%emt 0:00:28][%mdl 2048] White is under pressure.} 35. Rxf4 {[%emt 0:00:29]} f6 {[%emt 0:00:06]} 36. Nh7 {[%emt 0:04:09]} f5 {[%emt 0:00:47][%mdl 1024] Black has compensation.} (36... Rxh7 $2 37. exf6 Rxf6 38. Rxf6 $18) 37. Nf6+ {[%emt 0:02:20]} (37. Ng5 $1 $11) 37... Kf8 {[%emt 0:00:33]} (37... Kf7 $5 {[%cal Rg7f6]} 38. Bd3 Bxf6 39. exf6 Kxf6 $17) 38. Nfg4 {[%emt 0:01:21]} Rh4 {[%emt 0:00:20][%mdl 64] Hoping for ...Ke8. Pin} 39. Rf3 {[%emt 0:00:05]} Rg6 {[%emt 0:00:49]} (39... Kg8 {with more complications.} 40. Nf6+ Kf7 41. Kg2 Bxf6 42. exf6 Kxf6 43. Rg3 Ng6) 40. Ne3 {[%emt 0:00:39] [#]} (40. Bd3 $11) 40... Rxg1+ $2 {[%emt 0:00:26]} (40... Rgh6 $1 $19 {[%csl Gh6][%cal Rh4h2]} 41. Rg2 R6h5) 41. Kxg1 $11 {[%emt 0:00:05][%cal Rb1f5]} Rxd4 {[%emt 0:00:16] Strongly threatening ...f4.} 42. Bxf5 {[%emt 0:00:26]} Nxf5 {[%emt 0:00:45]} 43. Nxf5 {[%emt 0:00:05]} Bxf5 {[%emt 0:00:32]} 44. Rxf5+ $19 {[%emt 0:00:04][%mdl 4096] Endgame KRB-KRN} Ke7 {[%emt 0:00:03]} 45. Rg5 {[%emt 0:01:53]} Bh6 {[%emt 0:00:15]} 46. Rg6 {[%emt 0:00:04]} Bc1 {[%emt 0:00:33]} 47. Nf3 {[%emt 0:00:32]} Rf4 {[%emt 0:01:12]} 48. Kg2 {[%emt 0:00:05]} (48. Ne1 $11) 48... Bxb2 $15 {[%emt 0:00:08]} 49. Rb6 {[%emt 0:00:03]} b4 {[%emt 0:00:18]} (49... Bxa3 $15 50. Rxb5 Bb4 51. Rxd5 (51. Kg3 Rc4 $17) 51... a3) 50. axb4 $11 {[%emt 0:00:33]} a3 {[%emt 0:00:12] White must now prevent ...a2.} 51. Ra6 $1 {[%emt 0:00:07]} Rxb4 {[%emt 0:00:40]} 52. Kh3 {[%emt 0:01:19]} (52. Ne1 $11) 52... Rf4 {[%emt 0:01:13]} (52... Kd7 $17 {Threatens to win with ...Kc7.} 53. Kg2 Kc7) 53. Ng5 {[%emt 0:00:58]} (53. Kg2 $1 $11) 53... Bxe5 {[%emt 0:00:32]} ({Better is} 53... Rxf2 $17 {aiming for ...Re2.} 54. Kg4 Kd8) 54. Re6+ $1 {[%emt 0:00:28] The position is equal.} Kd7 {[%emt 0:00:19]} 55. Rxe5 {[%emt 0:00:08] KRN-KR} a2 {[%emt 0:00:18]} 56. Rxd5+ {[%emt 0:00:11]} Kc6 {[%emt 0:00:10]} 57. Ra5 {[%emt 0:00:06]} Rxf2 {[%emt 0:00:05]} 58. Ne4 {[%emt 0:01:55]} Kb6 {[%emt 0:00:52]} 59. Ra8 {[%emt 0:00:04]} Re2 {[%emt 0:00:18]} 60. Nc3 {[%emt 0:00:11]} Re3+ {[%emt 0:00:05]} 61. Kg4 {[%emt 0:00:04]} Rxc3 {[%emt 0:00:03]} 62. Rxa2 {[%emt 0:00:03] Weighted Error Value: White=0.20 (precise) /Black=0.20 (precise)} 1/2-1/2